[Event "MČR juniorů a juniorek v rapid šachu 2024"]
[Site "Hotel Fit Fun, Harrachov, Czech Republic"]
[Date "2024.09.22"]
[Round "7.17"]
[White "Stastna Martina"]
[Black "Bartak Josef"]
[Result "0-1"]
[TimeControl "20+5"]
[WhiteFideId "385123"]
[BlackFideId "23712252"]
[WhiteElo "1801"]
[BlackElo "1902"]

1. e4 {[%clk 00:20:08]} {[%emt 00:00:02]} e5 {[%clk 00:20:08]} {[%emt
00:00:02]} 2. Nf3 {[%clk 00:20:10]} {[%emt 00:00:02]} Nc6 {[%clk 00:20:11]}
{[%emt 00:00:03]} 3. Bb5 {[%clk 00:20:13]} {[%emt 00:00:02]} a6 {[%clk
00:20:15]} {[%emt 00:00:02]} 4. Ba4 {[%clk 00:20:16]} {[%emt 00:00:02]} d6
{[%clk 00:20:18]} {[%emt 00:00:01]} 5. c3 {[%clk 00:19:58]} {[%emt 00:00:23]}
f5 {[%clk 00:20:18]} {[%emt 00:00:05]} 6. d3 {[%clk 00:19:48]} {[%emt
00:00:15]} Nf6 {[%clk 00:20:20]} {[%emt 00:00:04]} 7. exf5 {[%clk 00:19:23]}
{[%emt 00:00:30]} Bxf5 {[%clk 00:20:21]} {[%emt 00:00:03]} 8. O-O {[%clk
00:19:25]} {[%emt 00:00:02]} Be7 {[%clk 00:20:23]} {[%emt 00:00:04]} 9. h3
{[%clk 00:18:39]} {[%emt 00:00:51]} O-O {[%clk 00:20:16]} {[%emt 00:00:11]} 10.
Bb3+ {[%clk 00:15:14]} {[%emt 00:03:31]} Kh8 {[%clk 00:17:47]} {[%emt
00:02:34]} 11. Re1 {[%clk 00:15:13]} {[%emt 00:00:06]} Qd7 {[%clk 00:14:57]}
{[%emt 00:02:55]} 12. Kh2 {[%clk 00:12:42]} {[%emt 00:02:36]} Rae8 {[%clk
00:13:46]} {[%emt 00:01:16]} 13. Bc2 {[%clk 00:09:55]} {[%emt 00:02:53]} d5
{[%clk 00:13:45]} {[%emt 00:00:06]} 14. Nbd2 {[%clk 00:09:20]} {[%emt
00:00:40]} Bd6 {[%clk 00:13:47]} {[%emt 00:00:03]} 15. Ng1 {[%clk 00:07:26]}
{[%emt 00:01:59]} e4+ {[%clk 00:12:34]} {[%emt 00:01:18]} 16. Kh1 {[%clk
00:07:16]} {[%emt 00:00:14]} exd3 {[%clk 00:12:26]} {[%emt 00:00:14]} 17. Rxe8
{[%clk 00:06:45]} {[%emt 00:00:36]} Rxe8 {[%clk 00:12:11]} {[%emt 00:00:20]} 18.
Bb1 {[%clk 00:06:46]} {[%emt 00:00:05]} Ne5 {[%clk 00:09:01]} {[%emt 00:03:15]}
19. Ndf3 {[%clk 00:06:02]} {[%emt 00:00:48]} Nxf3 {[%clk 00:04:12]} {[%emt
00:04:55]} 20. Qxf3 {[%clk 00:05:41]} {[%emt 00:00:25]} Re1 {[%clk 00:03:26]}
{[%emt 00:00:50]} 21. Bxd3 {[%clk 00:02:56]} {[%emt 00:02:51]} Be4 {[%clk
00:03:19]} {[%emt 00:00:13]} 22. Bxe4 {[%clk 00:02:23]} {[%emt 00:00:38]} dxe4
{[%clk 00:03:22]} {[%emt 00:00:01]} 23. Qe3 {[%clk 00:01:58]} {[%emt 00:00:30]}
Rxe3 {[%clk 00:03:20]} {[%emt 00:00:07]} 24. Bxe3 {[%clk 00:02:02]} {[%emt
00:00:01]} Qb5 {[%clk 00:03:10]} {[%emt 00:00:15]} 25. b4 {[%clk 00:01:47]}
{[%emt 00:00:20]} Be5 {[%clk 00:02:55]} {[%emt 00:00:20]} 0-1



[ePGN "0.1;DGT LiveChess/2.2.6"]

[Event "MČR juniorů a juniorek v rapid šachu 2024"]
[Site "Hotel Fit Fun, Harrachov, Czech Republic"]
[Date "2024.09.22"]
[Round "7.18"]
[White "Sknouril Jakub"]
[Black "Zadrapova Amalie"]
[Result "0-1"]
[TimeControl "20+5"]
[WhiteFideId "23731133"]
[BlackFideId "23710276"]
[WhiteElo "1806"]
[BlackElo "1891"]

1. e4 {[%clk 00:19:51]} {[%emt 00:00:15]} c5 {[%clk 00:20:08]} {[%emt
00:00:06]} 2. Nc3 {[%clk 00:19:55]} {[%emt 00:00:02]} Nc6 {[%clk 00:20:10]}
{[%emt 00:00:02]} 3. Nf3 {[%clk 00:19:58]} {[%emt 00:00:02]} d6 {[%clk
00:20:03]} {[%emt 00:00:11]} 4. Bb5 {[%clk 00:19:55]} {[%emt 00:00:08]} Bd7
{[%clk 00:19:59]} {[%emt 00:00:09]} 5. O-O {[%clk 00:19:55]} {[%emt 00:00:03]}
Nf6 {[%clk 00:19:47]} {[%emt 00:00:19]} 6. d4 {[%clk 00:20:00]} cxd4 7. Nxd4
{[%clk 00:20:03]} g6 {[%clk 00:19:08]} {[%emt 00:00:33]} 8. Be3 {[%clk
00:18:59]} {[%emt 00:01:10]} Bg7 {[%clk 00:19:09]} {[%emt 00:00:04]} 9. Qd2
{[%clk 00:13:29]} {[%emt 00:05:35]} Ng4 {[%clk 00:17:03]} {[%emt 00:02:11]} 10.
Nxc6 {[%clk 00:13:00]} {[%emt 00:00:34]} bxc6 {[%clk 00:17:00]} {[%emt
00:00:08]} 11. Bc4 {[%clk 00:12:45]} {[%emt 00:00:20]} Nxe3 {[%clk 00:16:38]}
{[%emt 00:00:27]} 12. Qxe3 {[%clk 00:12:32]} {[%emt 00:00:18]} O-O {[%clk
00:16:38]} {[%emt 00:00:05]} 13. Rad1 {[%clk 00:11:18]} {[%emt 00:01:19]} Qc7
{[%clk 00:15:37]} {[%emt 00:01:06]} 14. Rfe1 {[%clk 00:07:35]} {[%emt
00:03:48]} e6 {[%clk 00:14:22]} {[%emt 00:01:20]} 15. Bb3 {[%clk 00:02:36]}
{[%emt 00:05:04]} d5 {[%clk 00:11:35]} {[%emt 00:02:52]} 16. exd5 {[%clk
00:00:30]} {[%emt 00:02:11]} cxd5 {[%clk 00:11:06]} {[%emt 00:00:34]} 17. Qg3
{[%clk 00:00:34]} Qb6 {[%clk 00:07:49]} {[%emt 00:03:22]} 18. Na4 {[%clk
00:00:10]} {[%emt 00:00:29]} Bxa4 {[%clk 00:07:40]} {[%emt 00:00:14]} 19. Bxa4
{[%clk 00:00:13]} {[%emt 00:00:02]} Qxb2 {[%clk 00:07:22]} {[%emt 00:00:23]} 20.
Bb3 {[%clk 00:00:11]} {[%emt 00:00:07]} Rac8 {[%clk 00:06:42]} {[%emt
00:00:45]} 21. Rb1 {[%clk 00:00:10]} {[%emt 00:00:07]} Qf6 {[%clk 00:06:09]}
{[%emt 00:00:38]} 22. Qe3 {[%clk 00:00:09]} {[%emt 00:00:05]} a5 {[%clk
00:05:43]} {[%emt 00:00:30]} 23. Rbd1 {[%clk 00:00:12]} {[%emt 00:00:03]} Qh4
{[%clk 00:04:14]} {[%emt 00:01:34]} 24. Rd3 {[%clk 00:00:15]} {[%emt 00:00:01]}
a4 {[%clk 00:04:00]} {[%emt 00:00:19]} 0-1



[ePGN "0.1;DGT LiveChess/2.2.6"]

[Event "MČR juniorů a juniorek v rapid šachu 2024"]
[Site "Hotel Fit Fun, Harrachov, Czech Republic"]
[Date "2024.09.22"]
[Round "7.19"]
[White "Stary Simon"]
[Black "Nespurek Jakub"]
[Result "1-0"]
[TimeControl "20+5"]
[WhiteFideId "23734353"]
[BlackFideId "391816"]
[WhiteElo "1866"]
[BlackElo "1817"]

1. d4 {[%clk 00:20:09]} g6 {[%clk 00:20:08]} {[%emt 00:00:03]} 2. e4 {[%clk
00:20:13]} Bg7 {[%clk 00:20:11]} {[%emt 00:00:01]} 3. Nf3 {[%clk 00:20:13]}
{[%emt 00:00:04]} d6 {[%clk 00:20:15]} {[%emt 00:00:01]} 4. Nc3 {[%clk
00:20:17]} {[%emt 00:00:02]} Nd7 {[%clk 00:20:18]} {[%emt 00:00:03]} 5. Be2
{[%clk 00:20:19]} {[%emt 00:00:03]} c5 {[%clk 00:20:21]} {[%emt 00:00:02]} 6.
O-O {[%clk 00:20:04]} {[%emt 00:00:19]} cxd4 {[%clk 00:20:22]} {[%emt
00:00:04]} 7. Nxd4 {[%clk 00:20:07]} {[%emt 00:00:02]} Ngf6 {[%clk 00:20:23]}
{[%emt 00:00:04]} 8. Be3 {[%clk 00:20:04]} {[%emt 00:00:08]} O-O {[%clk
00:20:24]} {[%emt 00:00:04]} 9. f4 {[%clk 00:19:35]} {[%emt 00:00:34]} Nc5
{[%clk 00:16:01]} {[%emt 00:04:28]} 10. Bf3 {[%clk 00:19:38]} {[%emt 00:00:02]}
Ne6 {[%clk 00:12:59]} {[%emt 00:03:07]} 11. Nb3 {[%clk 00:17:47]} {[%emt
00:01:56]} a6 {[%clk 00:12:07]} {[%emt 00:00:58]} 12. a4 {[%clk 00:17:27]}
{[%emt 00:00:25]} Qc7 {[%clk 00:08:25]} {[%emt 00:03:45]} 13. a5 {[%clk
00:15:43]} {[%emt 00:01:50]} Nc5 {[%clk 00:07:46]} {[%emt 00:00:43]} 14. Nxc5
{[%clk 00:13:30]} {[%emt 00:02:19]} dxc5 {[%clk 00:07:41]} {[%emt 00:00:10]} 15.
e5 {[%clk 00:13:33]} {[%emt 00:00:02]} Ne8 {[%clk 00:07:05]} {[%emt 00:00:41]}
16. Ne4 {[%clk 00:12:54]} {[%emt 00:00:44]} Bd7 {[%clk 00:04:59]} {[%emt
00:02:11]} 17. Bxc5 {[%clk 00:11:47]} {[%emt 00:01:12]} Bc6 {[%clk 00:04:55]}
{[%emt 00:00:09]} 18. Bb6 {[%clk 00:11:51]} {[%emt 00:00:02]} Qc8 {[%clk
00:04:47]} {[%emt 00:00:11]} 19. Nc5 {[%clk 00:10:24]} {[%emt 00:01:32]} Nc7
{[%clk 00:01:14]} {[%emt 00:03:38]} 20. Bxc6 {[%clk 00:09:56]} {[%emt
00:00:34]} bxc6 {[%clk 00:01:17]} {[%emt 00:00:02]} 21. Qf3 {[%clk 00:09:46]}
{[%emt 00:00:15]} Ne6 {[%clk 00:00:55]} {[%emt 00:00:25]} 22. Rfd1 {[%clk
00:07:48]} {[%emt 00:02:05]} Nxc5 {[%clk 00:00:34]} {[%emt 00:00:26]} 23. Bxc5
{[%clk 00:07:51]} {[%emt 00:00:02]} Qe6 {[%clk 00:00:31]} {[%emt 00:00:08]} 24.
Bb6 {[%clk 00:07:30]} {[%emt 00:00:27]} f6 {[%clk 00:00:25]} {[%emt 00:00:11]}
25. exf6 {[%clk 00:07:21]} {[%emt 00:00:13]} Bxf6 {[%clk 00:00:24]} {[%emt
00:00:07]} 26. Re1 {[%clk 00:06:59]} {[%emt 00:00:26]} Qc4 {[%clk 00:00:19]}
{[%emt 00:00:08]} 27. c3 {[%clk 00:05:56]} {[%emt 00:01:10]} Qb5 {[%clk
00:00:13]} {[%emt 00:00:11]} 28. Qe2 {[%clk 00:05:17]} {[%emt 00:00:44]} Qxe2
{[%clk 00:00:08]} {[%emt 00:00:11]} 29. Rxe2 {[%clk 00:05:20]} {[%emt
00:00:02]} Rab8 {[%clk 00:00:10]} {[%emt 00:00:03]} 30. Rd1 {[%clk 00:05:19]}
{[%emt 00:00:05]} Rb7 {[%clk 00:00:13]} {[%emt 00:00:03]} 31. g3 {[%clk
00:05:16]} {[%emt 00:00:08]} Rc8 {[%clk 00:00:11]} {[%emt 00:00:05]} 32. Kg2
{[%clk 00:05:18]} {[%emt 00:00:03]} Kf7 {[%clk 00:00:15]} {[%emt 00:00:02]} 33.
Kf3 {[%clk 00:05:08]} {[%emt 00:00:15]} Re8 {[%clk 00:00:11]} {[%emt 00:00:09]}
34. Re4 {[%clk 00:04:54]} {[%emt 00:00:19]} e5 {[%clk 00:00:09]} {[%emt
00:00:07]} 35. Rd6 {[%clk 00:04:01]} {[%emt 00:00:58]} Rc8 {[%clk 00:00:07]}
{[%emt 00:00:09]} 36. fxe5 {[%clk 00:03:57]} {[%emt 00:00:09]} Be7 {[%clk
00:00:11]} {[%emt 00:00:01]} 37. e6+ {[%clk 00:03:29]} {[%emt 00:00:32]} Ke8
{[%clk 00:00:10]} {[%emt 00:00:06]} 38. Rd3 {[%clk 00:03:21]} {[%emt 00:00:12]}
Bf8 {[%clk 00:00:08]} {[%emt 00:00:08]} 39. Kg4 {[%clk 00:02:46]} {[%emt
00:00:39]} Bh6 {[%clk 00:00:08]} {[%emt 00:00:05]} 40. Rf3 {[%clk 00:01:50]}
{[%emt 00:01:01]} Bf8 {[%clk 00:00:07]} {[%emt 00:00:07]} 41. Ref4 {[%clk
00:01:17]} {[%emt 00:00:37]} Be7 {[%clk 00:00:11]} {[%emt 00:00:02]} 42. Rf7
{[%clk 00:01:21]} {[%emt 00:00:01]} h5+ {[%clk 00:00:15]} {[%emt 00:00:02]} 43.
Kh3 {[%clk 00:01:21]} {[%emt 00:00:04]} g5 {[%clk 00:00:14]} {[%emt 00:00:06]}
44. Rxe7+ {[%clk 00:01:10]} {[%emt 00:00:16]} Rxe7 {[%clk 00:00:15]} {[%emt
00:00:04]} 45. Rf6 {[%clk 00:01:00]} {[%emt 00:00:15]} c5 {[%clk 00:00:12]}
{[%emt 00:00:08]} 46. Rh6 {[%clk 00:00:58]} {[%emt 00:00:07]} g4+ {[%clk
00:00:09]} {[%emt 00:00:09]} 47. Kg2 {[%clk 00:01:02]} Rg7 {[%clk 00:00:09]}
{[%emt 00:00:04]} 48. Rh8+ {[%clk 00:01:03]} {[%emt 00:00:04]} Ke7 {[%clk
00:00:12]} {[%emt 00:00:01]} 49. Rxc8 {[%clk 00:01:06]} {[%emt 00:00:03]} Kxe6
{[%clk 00:00:16]} {[%emt 00:00:02]} 50. Rxc5 {[%clk 00:01:07]} {[%emt
00:00:04]} Rd7 {[%clk 00:00:18]} {[%emt 00:00:02]} 51. Rxh5 {[%clk 00:00:52]}
{[%emt 00:00:20]} Rd2+ {[%clk 00:00:21]} {[%emt 00:00:01]} 52. Kf1 {[%clk
00:00:55]} {[%emt 00:00:02]} Rxb2 {[%clk 00:00:24]} {[%emt 00:00:03]} 53. Bd4
{[%clk 00:00:50]} {[%emt 00:00:10]} Rc2 {[%clk 00:00:19]} {[%emt 00:00:11]} 54.
Ke1 {[%clk 00:00:46]} {[%emt 00:00:09]} Kd6 {[%clk 00:00:19]} {[%emt 00:00:05]}
55. Kd1 {[%clk 00:00:49]} {[%emt 00:00:01]} Ra2 {[%clk 00:00:21]} {[%emt
00:00:02]} 56. c4 {[%clk 00:00:40]} {[%emt 00:00:15]} Ra4 {[%clk 00:00:18]}
{[%emt 00:00:08]} 57. Rh6+ {[%clk 00:00:43]} {[%emt 00:00:02]} Kd7 {[%clk
00:00:22]} {[%emt 00:00:02]} 58. Rxa6 {[%clk 00:00:33]} {[%emt 00:00:14]} Rxc4
{[%clk 00:00:25]} {[%emt 00:00:01]} 59. Bb6 {[%clk 00:00:31]} {[%emt 00:00:08]}
Kc6 {[%clk 00:00:20]} {[%emt 00:00:10]} 60. Ra8 {[%clk 00:00:34]} {[%emt
00:00:02]} Ra4 {[%clk 00:00:19]} {[%emt 00:00:06]} 61. Rc8+ {[%clk 00:00:36]}
{[%emt 00:00:03]} Kb5 {[%clk 00:00:22]} {[%emt 00:00:02]} 62. Rc5+ {[%clk
00:00:39]} {[%emt 00:00:02]} Ka6 {[%clk 00:00:26]} {[%emt 00:00:01]} 63. Rf5
{[%clk 00:00:41]} {[%emt 00:00:03]} Ra2 {[%clk 00:00:27]} {[%emt 00:00:04]} 64.
Rf4 {[%clk 00:00:40]} {[%emt 00:00:05]} Rxh2 {[%clk 00:00:27]} {[%emt
00:00:05]} 65. Rxg4 {[%clk 00:00:44]} Rg2 {[%clk 00:00:28]} {[%emt 00:00:04]}
66. Rg8 {[%clk 00:00:44]} {[%emt 00:00:05]} Kb5 {[%clk 00:00:31]} {[%emt
00:00:02]} 67. g4 {[%clk 00:00:45]} {[%emt 00:00:05]} Ra2 {[%clk 00:00:25]}
{[%emt 00:00:10]} 68. Rc8 {[%clk 00:00:19]} {[%emt 00:00:31]} Rg2 {[%clk
00:00:28]} {[%emt 00:00:02]} 69. Rc5+ {[%clk 00:00:20]} {[%emt 00:00:05]} Ka6
{[%clk 00:00:23]} {[%emt 00:00:10]} 70. Rg5 {[%clk 00:00:23]} {[%emt 00:00:01]}
Rg3 {[%clk 00:00:23]} {[%emt 00:00:05]} 71. Ke2 {[%clk 00:00:26]} {[%emt
00:00:28]} Rg2+ {[%clk 00:00:15]} 72. Kf3 Ra2 {[%clk 00:00:18]} 73. Rf5 {[%clk
00:00:30]} Ra3+ 74. Kf4 Rc3 {[%clk 00:00:19]} {[%emt 00:00:04]} 75. g5 {[%clk
00:00:36]} {[%emt 00:00:04]} Rc6 {[%clk 00:00:16]} {[%emt 00:00:08]} 76. Rf6
{[%clk 00:00:38]} {[%emt 00:00:03]} Rc4+ {[%clk 00:00:19]} 77. Kf5 {[%clk
00:00:42]} {[%emt 00:00:02]} Kb7 {[%clk 00:00:13]} {[%emt 00:00:11]} 78. g6
{[%clk 00:00:46]} Rc8 {[%clk 00:00:15]} {[%emt 00:00:02]} 79. g7 {[%clk
00:00:48]} {[%emt 00:00:03]} Rg8 {[%clk 00:00:17]} {[%emt 00:00:04]} 80. Kg6
{[%clk 00:00:52]} {[%emt 00:00:01]} Ra8 {[%clk 00:00:12]} {[%emt 00:00:47]} 81.
Rf7+ {[%clk 00:00:51]} Ka6 {[%clk 00:00:13]} 82. Ra7+ {[%clk 00:00:55]} Rxa7
{[%clk 00:00:16]} 83. Bxa7 {[%clk 00:00:59]} 1-0



[ePGN "0.1;DGT LiveChess/2.2.6"]

[Event "MČR juniorů a juniorek v rapid šachu 2024"]
[Site "Hotel Fit Fun, Harrachov, Czech Republic"]
[Date "2024.09.22"]
[Round "7.2"]
[White "Markina Sofiia"]
[Black "Hak David"]
[Result "0-1"]
[TimeControl "20+5"]
[WhiteFideId "23744014"]
[BlackFideId "377007"]
[WhiteElo "1885"]
[BlackElo "2103"]

1. e4 {[%clk 00:20:08]} {[%emt 00:00:01]} c5 {[%clk 00:19:44]} {[%emt
00:00:26]} 2. Nc3 {[%clk 00:20:12]} {[%emt 00:00:02]} Nc6 {[%clk 00:19:49]} 3.
Bb5 {[%clk 00:20:16]} {[%emt 00:00:01]} Nd4 {[%clk 00:19:44]} {[%emt 00:00:10]}
4. Nf3 {[%clk 00:19:44]} {[%emt 00:00:37]} e6 {[%clk 00:19:32]} {[%emt
00:00:17]} 5. Bc4 {[%clk 00:19:24]} {[%emt 00:00:24]} a6 {[%clk 00:19:26]}
{[%emt 00:00:10]} 6. a4 {[%clk 00:19:27]} {[%emt 00:00:04]} Nf6 {[%clk
00:19:13]} {[%emt 00:00:17]} 7. e5 {[%clk 00:18:54]} {[%emt 00:00:38]} d5
{[%clk 00:19:07]} {[%emt 00:00:11]} 8. exf6 {[%clk 00:16:52]} {[%emt 00:02:08]}
dxc4 {[%clk 00:19:08]} {[%emt 00:00:04]} 9. fxg7 {[%clk 00:16:54]} {[%emt
00:00:02]} Bxg7 {[%clk 00:19:10]} {[%emt 00:00:03]} 10. O-O {[%clk 00:16:52]}
{[%emt 00:00:08]} Bd7 {[%clk 00:18:40]} {[%emt 00:00:34]} 11. Ne4 {[%clk
00:16:43]} {[%emt 00:00:14]} Bc6 {[%clk 00:18:18]} {[%emt 00:00:27]} 12. d3
{[%clk 00:15:20]} {[%emt 00:01:29]} Qc7 {[%clk 00:14:59]} {[%emt 00:03:23]} 13.
Nxd4 {[%clk 00:13:28]} {[%emt 00:01:58]} Bxd4 {[%clk 00:12:41]} {[%emt
00:02:23]} 14. c3 {[%clk 00:13:15]} {[%emt 00:00:18]} Be5 {[%clk 00:11:50]}
{[%emt 00:00:55]} 15. f4 {[%clk 00:13:03]} {[%emt 00:00:17]} O-O-O {[%clk
00:11:24]} {[%emt 00:00:30]} 16. fxe5 {[%clk 00:12:25]} {[%emt 00:00:44]} Bxe4
{[%clk 00:11:20]} {[%emt 00:00:09]} 17. d4 {[%clk 00:12:11]} {[%emt 00:00:19]}
Rhg8 {[%clk 00:11:10]} {[%emt 00:00:15]} 18. g3 {[%clk 00:11:40]} {[%emt
00:00:37]} f5 {[%clk 00:08:17]} {[%emt 00:02:57]} 19. Bf4 {[%clk 00:11:20]}
{[%emt 00:00:25]} Qb6 {[%clk 00:07:46]} {[%emt 00:00:37]} 20. Qe2 {[%clk
00:08:23]} {[%emt 00:03:01]} Bd3 {[%clk 00:06:40]} {[%emt 00:01:10]} 21. Qf2
{[%clk 00:08:27]} {[%emt 00:00:02]} Bxf1 {[%clk 00:05:35]} {[%emt 00:01:11]} 22.
Rxf1 {[%clk 00:08:14]} {[%emt 00:00:17]} cxd4 {[%clk 00:05:34]} {[%emt
00:00:06]} 23. Rd1 {[%clk 00:08:07]} {[%emt 00:00:12]} Rd5 {[%clk 00:04:43]}
{[%emt 00:00:57]} 24. cxd4 {[%clk 00:07:55]} {[%emt 00:00:17]} Rgd8 {[%clk
00:04:39]} {[%emt 00:00:09]} 25. Be3 {[%clk 00:07:23]} {[%emt 00:00:37]} Rxe5
{[%clk 00:04:23]} {[%emt 00:00:21]} 26. Rc1 {[%clk 00:07:27]} Re4 {[%clk
00:04:09]} {[%emt 00:00:19]} 27. Rxc4+ {[%clk 00:07:27]} {[%emt 00:00:06]} Kb8
{[%clk 00:04:10]} {[%emt 00:00:02]} 28. b4 {[%clk 00:06:10]} {[%emt 00:01:22]}
Ka8 {[%clk 00:03:34]} {[%emt 00:00:41]} 29. a5 {[%clk 00:05:49]} {[%emt
00:00:26]} Qb5 {[%clk 00:03:32]} {[%emt 00:00:07]} 30. Rc3 {[%clk 00:05:26]}
{[%emt 00:00:28]} Qxb4 {[%clk 00:03:22]} {[%emt 00:00:16]} 31. Qc2 {[%clk
00:05:30]} {[%emt 00:00:01]} Rxe3 {[%clk 00:03:02]} {[%emt 00:00:25]} 32. Rxe3
{[%clk 00:05:29]} {[%emt 00:00:06]} Qxd4 {[%clk 00:03:04]} {[%emt 00:00:02]} 33.
Qf2 {[%clk 00:05:26]} {[%emt 00:00:08]} e5 {[%clk 00:02:35]} {[%emt 00:00:35]}
34. Kg2 {[%clk 00:05:16]} {[%emt 00:00:15]} f4 {[%clk 00:02:29]} {[%emt
00:00:12]} 0-1



[ePGN "0.1;DGT LiveChess/2.2.6"]

[Event "MČR juniorů a juniorek v rapid šachu 2024"]
[Site "Hotel Fit Fun, Harrachov, Czech Republic"]
[Date "2024.09.22"]
[Round "7.20"]
[White "Jun Robert"]
[Black "Husa Daniel"]
[Result "1-0"]
[TimeControl "20+5"]
[WhiteFideId "23709510"]
[BlackFideId "393487"]
[WhiteElo "1681"]
[BlackElo "1866"]

1. e4 {[%clk 00:20:07]} {[%emt 00:00:03]} c5 {[%clk 00:19:44]} {[%emt
00:00:22]} 2. Nf3 {[%clk 00:20:04]} {[%emt 00:00:13]} e6 {[%clk 00:19:46]}
{[%emt 00:00:03]} 3. c3 {[%clk 00:20:03]} {[%emt 00:00:05]} Nf6 {[%clk
00:19:40]} {[%emt 00:00:11]} 4. e5 {[%clk 00:20:07]} {[%emt 00:00:02]} Nd5
{[%clk 00:19:44]} {[%emt 00:00:01]} 5. d4 {[%clk 00:20:11]} cxd4 {[%clk
00:19:47]} {[%emt 00:00:03]} 6. cxd4 {[%emt 00:00:02]} b6 {[%clk 00:19:46]}
{[%emt 00:00:05]} 7. Bc4 {[%clk 00:18:05]} {[%emt 00:02:15]} Bb7 {[%clk
00:19:22]} {[%emt 00:00:29]} 8. O-O {[%clk 00:18:07]} {[%emt 00:00:02]} Qc7
{[%clk 00:18:42]} {[%emt 00:00:45]} 9. Bxd5 {[%clk 00:16:56]} {[%emt 00:01:16]}
Bxd5 {[%clk 00:18:30]} {[%emt 00:00:18]} 10. Nc3 {[%clk 00:16:59]} {[%emt
00:00:01]} Bc6 {[%clk 00:15:30]} {[%emt 00:03:06]} 11. d5 {[%clk 00:16:43]}
{[%emt 00:00:21]} exd5 {[%clk 00:15:19]} {[%emt 00:00:16]} 12. Nxd5 {[%clk
00:16:47]} Qb7 {[%clk 00:15:02]} {[%emt 00:00:21]} 13. Nc3 {[%clk 00:15:45]}
{[%emt 00:01:07]} Be7 {[%clk 00:14:02]} {[%emt 00:01:05]} 14. Re1 {[%clk
00:14:27]} {[%emt 00:01:23]} O-O {[%clk 00:13:22]} {[%emt 00:00:44]} 15. Nd4
{[%clk 00:12:33]} {[%emt 00:02:00]} d6 {[%clk 00:06:04]} {[%emt 00:07:23]} 16.
exd6 {[%clk 00:11:04]} {[%emt 00:01:34]} Bxd6 {[%clk 00:05:54]} {[%emt
00:00:15]} 17. Nf5 {[%clk 00:10:57]} {[%emt 00:00:12]} Bc5 {[%clk 00:04:56]}
{[%emt 00:01:03]} 18. Qg4 {[%clk 00:10:27]} {[%emt 00:00:35]} g6 {[%clk
00:04:02]} {[%emt 00:00:59]} 19. Bg5 {[%clk 00:07:53]} {[%emt 00:02:39]} h5
{[%clk 00:03:36]} {[%emt 00:00:31]} 20. Qg3 {[%clk 00:07:01]} {[%emt 00:00:57]}
Kh7 {[%clk 00:01:37]} {[%emt 00:02:04]} 21. Ne7 {[%clk 00:06:18]} {[%emt
00:00:48]} Re8 {[%clk 00:00:44]} {[%emt 00:00:57]} 22. Nxc6 {[%clk 00:05:40]}
{[%emt 00:00:43]} Qxc6 {[%clk 00:00:47]} {[%emt 00:00:02]} 23. Rxe8 {[%clk
00:05:20]} {[%emt 00:00:25]} Qxe8 {[%clk 00:00:51]} {[%emt 00:00:02]} 24. Nd5
{[%clk 00:04:53]} {[%emt 00:00:32]} Qe6 {[%clk 00:00:11]} {[%emt 00:00:45]} 25.
Nc7 {[%clk 00:04:44]} {[%emt 00:00:14]} Bd6 {[%clk 00:00:14]} {[%emt 00:00:01]}
26. Nxe6 {[%clk 00:04:48]} {[%emt 00:00:02]} Bxg3 {[%clk 00:00:18]} {[%emt
00:00:01]} 27. hxg3 {[%clk 00:04:45]} {[%emt 00:00:08]} fxe6 {[%clk 00:00:22]}
28. Re1 {[%clk 00:04:48]} {[%emt 00:00:02]} Nc6 {[%clk 00:00:11]} {[%emt
00:00:16]} 29. Rxe6 {[%clk 00:04:48]} {[%emt 00:00:05]} Rc8 {[%clk 00:00:15]}
{[%emt 00:00:01]} 30. Kf1 {[%clk 00:04:45]} {[%emt 00:00:07]} Kg7 {[%clk
00:00:13]} {[%emt 00:00:07]} 31. Rd6 {[%clk 00:04:41]} {[%emt 00:00:10]} Rc7
{[%clk 00:00:10]} {[%emt 00:00:08]} 32. Bf4 {[%clk 00:04:38]} {[%emt 00:00:08]}
Kf7 {[%clk 00:00:07]} {[%emt 00:00:07]} 33. Rxg6 {[%clk 00:04:29]} {[%emt
00:00:14]} Rd7 {[%clk 00:00:06]} {[%emt 00:00:07]} 34. Rxc6 {[%clk 00:04:27]}
{[%emt 00:00:07]} 1-0



[ePGN "0.1;DGT LiveChess/2.2.6"]